[Event "Late-Titled-Tuesday-Blitz-February-13-2024"]
[Site "Chess.com"]
[Date "2024.02.13"]
[Round "7"]
[White "Sl4werThanYou"]
[Black "h4parah5"]
[Result "0-1"]
[WhiteElo "2675"]
[BlackElo "2974"]
[TimeControl "180+1"]
[EndTime "15:19:28 PST"]
[Termination "h4parah5 won by resignation"]

1. d4 {[%clk 0:03:00.9]} 1... Nf6 {[%clk 0:02:59.5]} 2. c4 {[%clk 0:03:00.2]}
2... e6 {[%clk 0:03:00]} 3. Nc3 {[%clk 0:02:57.1]} 3... d5 {[%clk 0:03:00.5]} 4.
cxd5 {[%clk 0:02:44.8]} 4... exd5 {[%clk 0:03:01.4]} 5. Bf4 {[%clk 0:02:45.1]}
5... c6 {[%clk 0:02:58.1]} 6. e3 {[%clk 0:02:45.2]} 6... Bf5 {[%clk 0:02:57.6]}
7. Nge2 {[%clk 0:02:41.5]} 7... Bd6 {[%clk 0:02:39.4]} 8. Bxd6 {[%clk
0:02:40.2]} 8... Qxd6 {[%clk 0:02:40.3]} 9. Ng3 {[%clk 0:02:40.6]} 9... Bg6
{[%clk 0:02:32.3]} 10. Bd3 {[%clk 0:02:40.4]} 10... Bxd3 {[%clk 0:02:30.4]} 11.
Qxd3 {[%clk 0:02:40.1]} 11... O-O {[%clk 0:02:30.6]} 12. O-O {[%clk 0:02:38]}
12... Nbd7 {[%clk 0:02:27.6]} 13. Rfe1 {[%clk 0:02:29.9]} 13... Rfe8 {[%clk
0:02:25.8]} 14. Rad1 {[%clk 0:02:23]} 14... Rad8 {[%clk 0:02:20.5]} 15. f3
{[%clk 0:02:21.5]} 15... Qb4 {[%clk 0:02:06.9]} 16. Qc2 {[%clk 0:02:14.6]} 16...
Nf8 {[%clk 0:01:53.9]} 17. a3 {[%clk 0:02:13.9]} 17... Qb6 {[%clk 0:01:52.4]}
18. Na4 {[%clk 0:02:09.7]} 18... Qc7 {[%clk 0:01:51.1]} 19. Nc5 {[%clk
0:02:09.6]} 19... b6 {[%clk 0:01:48.5]} 20. Nd3 {[%clk 0:02:05.9]} 20... Ne6
{[%clk 0:01:47.7]} 21. Rc1 {[%clk 0:02:03.7]} 21... Rc8 {[%clk 0:01:46.5]} 22.
b4 {[%clk 0:02:03]} 22... g6 {[%clk 0:01:44.1]} 23. Qa4 {[%clk 0:01:54.5]} 23...
h5 {[%clk 0:01:31.1]} 24. Ne2 {[%clk 0:01:14.1]} 24... h4 {[%clk 0:01:26.6]} 25.
Nef4 {[%clk 0:01:14.4]} 25... Nxf4 {[%clk 0:01:04.2]} 26. Nxf4 {[%clk
0:01:15.3]} 26... b5 {[%clk 0:00:58.1]} 27. Qb3 {[%clk 0:01:11.4]} 27... Qd6
{[%clk 0:00:57.8]} 28. Nd3 {[%clk 0:01:09.4]} 28... Nd7 {[%clk 0:00:52.3]} 29.
Qc2 {[%clk 0:00:53.1]} 29... Re7 {[%clk 0:00:45.7]} 30. Qf2 {[%clk 0:00:52.4]}
30... Rce8 {[%clk 0:00:39.9]} 31. Rc3 {[%clk 0:00:44]} 31... Qf6 {[%clk
0:00:35.4]} 32. f4 {[%clk 0:00:25.8]} 32... Nb6 {[%clk 0:00:27.7]} 33. Ne5
{[%clk 0:00:22.3]} 33... Nc4 {[%clk 0:00:28.3]} 34. Ra1 {[%clk 0:00:17]} 34...
Kg7 {[%clk 0:00:23.2]} 35. a4 {[%clk 0:00:16.9]} 35... Qf5 {[%clk 0:00:17.7]}
36. Re1 {[%clk 0:00:08.3]} 36... Re6 {[%clk 0:00:16.4]} 37. Qxh4 {[%clk
0:00:07]} 37... f6 {[%clk 0:00:15.7]} 38. Ng4 {[%clk 0:00:05.4]} 38... Qh5
{[%clk 0:00:13.5]} 39. Qg3 {[%clk 0:00:04.9]} 39... Nd6 {[%clk 0:00:13.2]} 40.
Rxc6 {[%clk 0:00:03.6]} 40... Nf5 {[%clk 0:00:12.3]} 41. Rc7+ {[%clk 0:00:03.8]}
41... R8e7 {[%clk 0:00:12.5]} 42. Rxe7+ {[%clk 0:00:03.9]} 42... Rxe7 {[%clk
0:00:13.1]} 43. Qf3 {[%clk 0:00:04.4]} 43... Nxd4 {[%clk 0:00:13.5]} 44. Qd1
{[%clk 0:00:01.8]} 44... Nf5 {[%clk 0:00:12.3]} 45. h3 {[%clk 0:00:02.5]} 45...
bxa4 {[%clk 0:00:11.7]} 46. Qxd5 {[%clk 0:00:02.9]} 46... Qh4 {[%clk 0:00:10.1]}
47. Qd2 {[%clk 0:00:02.3]} 47... Qg3 {[%clk 0:00:10]} 48. e4 {[%clk 0:00:02.1]}
48... Nh4 {[%clk 0:00:09.3]} 49. Qe2 {[%clk 0:00:02.1]} 49... Qxf4 {[%clk
0:00:08.9]} 50. Rf1 {[%clk 0:00:01.9]} 50... Qxe4 {[%clk 0:00:09.4]} 51. Qf2
{[%clk 0:00:02.1]} 51... Nf5 {[%clk 0:00:08.4]} 52. Qb2 {[%clk 0:00:02.9]} 52...
Qd4+ {[%clk 0:00:08.1]} 53. Qxd4 {[%clk 0:00:03.4]} 53... Nxd4 {[%clk 0:00:09]}
54. Nxf6 {[%clk 0:00:04.1]} 54... a3 {[%clk 0:00:08.5]} 55. Nd5 {[%clk
0:00:03.8]} 55... Rd7 {[%clk 0:00:08.1]} 56. Nc3 {[%clk 0:00:04.3]} 56... Nc2
{[%clk 0:00:08.1]} 57. Rf2 {[%clk 0:00:04.1]} 57... Nxb4 {[%clk 0:00:06.7]} 58.
Rf1 {[%clk 0:00:01.7]} 58... Rc7 {[%clk 0:00:06.7]} 59. Nb5 {[%clk 0:00:01.3]}
59... Rd7 {[%clk 0:00:05.1]} 60. Nxa3 {[%clk 0:00:01.7]} 60... Rd2 {[%clk
0:00:04.6]} 61. Nc4 {[%clk 0:00:02.4]} 61... Re2 {[%clk 0:00:04.7]} 62. Ra1
{[%clk 0:00:02.7]} 62... Nc6 {[%clk 0:00:04.8]} 63. Ra6 {[%clk 0:00:02.9]} 63...
Re6 {[%clk 0:00:02.7]} 64. Kh2 {[%clk 0:00:03.5]} 64... Kf6 {[%clk 0:00:02.7]}
65. Na5 {[%clk 0:00:03.1]} 65... Nxa5 {[%clk 0:00:02.6]} 66. Rxa5 {[%clk
0:00:04]} 66... a6 {[%clk 0:00:03.4]} 67. h4 {[%clk 0:00:04.1]} 67... Kg7 {[%clk
0:00:03.7]} 68. Kh3 {[%clk 0:00:04.6]} 68... Rd6 {[%clk 0:00:03.9]} 69. h5
{[%clk 0:00:04.6]} 69... gxh5 {[%clk 0:00:03.7]} 70. Rxh5 {[%clk 0:00:05.5]}
70... Rh6 {[%clk 0:00:03.6]} 71. Rxh6 {[%clk 0:00:01.4]} 71... Kxh6 {[%clk
0:00:04.5]} 72. Kg4 {[%clk 0:00:01.6]} 72... a5 {[%clk 0:00:05]} 73. Kf5 {[%clk
0:00:01.4]} 73... a4 {[%clk 0:00:05.9]} 74. g4 {[%clk 0:00:01.5]} 74... a3
{[%clk 0:00:06.8]} 75. g5+ {[%clk 0:00:02.3]} 75... Kg7 {[%clk 0:00:06.8]} 76.
Ke4 {[%clk 0:00:01.9]} 76... a2 {[%clk 0:00:07.7]} 77. Kd3 {[%clk 0:00:02.8]}
77... a1=Q {[%clk 0:00:08.1]} 78. Kc2 {[%clk 0:00:03.7]} 78... Qe5 {[%clk
0:00:08.4]} 0-1

[Event "Late-Titled-Tuesday-Blitz-February-13-2024"]
[Site "Chess.com"]
[Date "2024.02.13"]
[Round "7"]
[White "Jaka_Brilej"]
[Black "Alblooshi_Hamad"]
[Result "1-0"]
[WhiteElo "2535"]
[BlackElo "2260"]
[TimeControl "180+1"]
[EndTime "15:19:36 PST"]
[Termination "Jaka_Brilej won on time"]

1. e4 {[%clk 0:03:00.9]} 1... c5 {[%clk 0:02:56.8]} 2. Nf3 {[%clk 0:03:00.2]}
2... Nc6 {[%clk 0:02:55.6]} 3. Bb5 {[%clk 0:02:59]} 3... Qb6 {[%clk 0:02:51.4]}
4. Bxc6 {[%clk 0:02:48.8]} 4... Qxc6 {[%clk 0:02:49.5]} 5. d3 {[%clk 0:02:47.7]}
5... g6 {[%clk 0:02:47.3]} 6. O-O {[%clk 0:02:48.6]} 6... Bg7 {[%clk 0:02:47.7]}
7. c3 {[%clk 0:02:47.9]} 7... d6 {[%clk 0:02:45.4]} 8. h3 {[%clk 0:02:46.3]}
8... Nf6 {[%clk 0:02:43.8]} 9. e5 {[%clk 0:02:44]} 9... dxe5 {[%clk 0:02:23]}
10. Nxe5 {[%clk 0:02:44.9]} 10... Qc7 {[%clk 0:02:23.6]} 11. Re1 {[%clk
0:02:32.7]} 11... O-O {[%clk 0:02:18.7]} 12. Na3 {[%clk 0:02:33.1]} 12... a6
{[%clk 0:02:18.4]} 13. Bf4 {[%clk 0:02:31.6]} 13... Qd8 {[%clk 0:02:17.7]} 14.
Nac4 {[%clk 0:02:22]} 14... Be6 {[%clk 0:02:05.9]} 15. Bh2 {[%clk 0:02:17.2]}
15... b5 {[%clk 0:02:01.7]} 16. Ne3 {[%clk 0:01:55]} 16... Nd5 {[%clk
0:01:57.1]} 17. Nc6 {[%clk 0:01:43.4]} 17... Qd7 {[%clk 0:01:44.7]} 18. Nxd5
{[%clk 0:01:41.6]} 18... Bxd5 {[%clk 0:01:45.6]} 19. Nxe7+ {[%clk 0:01:40.4]}
19... Kh8 {[%clk 0:01:46.2]} 20. Nxd5 {[%clk 0:01:40.7]} 20... Qxd5 {[%clk
0:01:47.1]} 21. Qc2 {[%clk 0:01:24.4]} 21... Rad8 {[%clk 0:01:44.6]} 22. Re3
{[%clk 0:01:17.7]} 22... Bh6 {[%clk 0:01:41.5]} 23. Rf3 {[%clk 0:01:16.3]} 23...
f5 {[%clk 0:01:38.1]} 24. a4 {[%clk 0:01:07.1]} 24... Rfe8 {[%clk 0:01:30.8]}
25. axb5 {[%clk 0:00:48.8]} 25... axb5 {[%clk 0:01:31.7]} 26. Bc7 {[%clk
0:00:48.6]} 26... Rd7 {[%clk 0:01:28.1]} 27. Ba5 {[%clk 0:00:41.9]} 27... Rde7
{[%clk 0:01:26.4]} 28. c4 {[%clk 0:00:34.7]} 28... bxc4 {[%clk 0:01:19.2]} 29.
dxc4 {[%clk 0:00:35.6]} 29... Qd6 {[%clk 0:00:59.4]} 30. Rd1 {[%clk 0:00:33.5]}
30... Qe6 {[%clk 0:00:53.3]} 31. Re1 {[%clk 0:00:25]} 31... Qd6 {[%clk
0:00:45.9]} 32. Rxe7 {[%clk 0:00:20.1]} 32... Qxe7 {[%clk 0:00:35.7]} 33. g3
{[%clk 0:00:17.3]} 33... Ra8 {[%clk 0:00:31]} 34. Bc3+ {[%clk 0:00:17.3]} 34...
Kg8 {[%clk 0:00:31.5]} 35. Qd3 {[%clk 0:00:13.5]} 35... Rd8 {[%clk 0:00:30.3]}
36. Qc2 {[%clk 0:00:12.5]} 36... Qd7 {[%clk 0:00:25.7]} 37. Kg2 {[%clk
0:00:09.5]} 37... Qd6 {[%clk 0:00:19.1]} 38. Qe2 {[%clk 0:00:09.4]} 38... Kf7
{[%clk 0:00:17.8]} 39. h4 {[%clk 0:00:08.8]} 39... Re8 {[%clk 0:00:18]} 40. Qd3
{[%clk 0:00:08.4]} 40... Qc6 {[%clk 0:00:16.4]} 41. Qd5+ {[%clk 0:00:08.3]}
41... Qxd5 {[%clk 0:00:16.5]} 42. cxd5 {[%clk 0:00:09.2]} 42... Rd8 {[%clk
0:00:17.2]} 43. Rd3 {[%clk 0:00:09.4]} 43... Bf8 {[%clk 0:00:15.1]} 44. Kf3
{[%clk 0:00:09.4]} 44... Re8 {[%clk 0:00:15.1]} 45. Bd2 {[%clk 0:00:09.5]} 45...
Bg7 {[%clk 0:00:10.5]} 46. b3 {[%clk 0:00:08.8]} 46... Rd8 {[%clk 0:00:10.7]}
47. Bf4 {[%clk 0:00:09.3]} 47... Bd4 {[%clk 0:00:08.7]} 48. d6 {[%clk
0:00:09.1]} 48... Ke6 {[%clk 0:00:08]} 49. b4 {[%clk 0:00:09.4]} 49... Rd7
{[%clk 0:00:06.3]} 50. h5 {[%clk 0:00:08.9]} 50... Rd8 {[%clk 0:00:04.3]} 51. h6
{[%clk 0:00:09.3]} 51... Rd7 {[%clk 0:00:04.3]} 52. Ke2 {[%clk 0:00:09.7]} 52...
Rd8 {[%clk 0:00:04.5]} 53. Kd1 {[%clk 0:00:10.2]} 53... Kd7 {[%clk 0:00:05.1]}
54. Kc2 {[%clk 0:00:09.9]} 54... Re8 {[%clk 0:00:05.6]} 55. Kb3 {[%clk
0:00:09.9]} 55... Re2 {[%clk 0:00:04.5]} 56. bxc5 {[%clk 0:00:09.8]} 56... Bxc5
{[%clk 0:00:04.3]} 57. Rd5 {[%clk 0:00:09.5]} 57... Bxf2 {[%clk 0:00:03.3]} 58.
Rb5 {[%clk 0:00:09.8]} 58... Re4 {[%clk 0:00:01.2]} 59. Rb7+ {[%clk 0:00:10.1]}
59... Ke6 {[%clk 0:00:01.9]} 60. d7 {[%clk 0:00:10.4]} 60... Rd4 {[%clk
0:00:02.5]} 61. Bg5 {[%clk 0:00:09.7]} 61... Rxd7 {[%clk 0:00:02.5]} 62. Rb6+
{[%clk 0:00:10.2]} 62... Rd6 {[%clk 0:00:02.8]} 63. Rb7 {[%clk 0:00:09.5]} 63...
Bxg3 {[%clk 0:00:02.8]} 64. Rxh7 {[%clk 0:00:09.6]} 64... Rd3+ {[%clk
0:00:03.3]} 65. Kc4 {[%clk 0:00:09.6]} 65... Be5 {[%clk 0:00:03.7]} 66. Re7+
{[%clk 0:00:09.8]} 66... Kd6 {[%clk 0:00:03.1]} 67. h7 {[%clk 0:00:09.6]} 67...
Rh3 {[%clk 0:00:02.7]} 68. Rf7 {[%clk 0:00:09.7]} 68... Ke6 {[%clk 0:00:02.7]}
69. Re7+ {[%clk 0:00:10.1]} 69... Kd6 {[%clk 0:00:03.1]} 70. Kb5 {[%clk
0:00:10.8]} 70... Bd4 {[%clk 0:00:01.8]} 71. Kc4 {[%clk 0:00:10.3]} 1-0

[Event "Late-Titled-Tuesday-Blitz-February-13-2024"]
[Site "Chess.com"]
[Date "2024.02.13"]
[Round "7"]
[White "LiemLe"]
[Black "DeGrootteZ"]
[Result "1/2-1/2"]
[WhiteElo "3020"]
[BlackElo "2846"]
[TimeControl "180+1"]
[EndTime "15:19:37 PST"]
[Termination "Game drawn - insufficient material"]

1. Nf3 {[%clk 0:03:00.9]} 1... d5 {[%clk 0:02:59.7]} 2. e3 {[%clk 0:03:00.7]}
2... Nf6 {[%clk 0:02:59.5]} 3. c4 {[%clk 0:03:01]} 3... e6 {[%clk 0:03:00]} 4.
Nc3 {[%clk 0:03:01]} 4... c5 {[%clk 0:02:59.4]} 5. d4 {[%clk 0:03:00.9]} 5... a6
{[%clk 0:02:59.1]} 6. a3 {[%clk 0:02:41.8]} 6... dxc4 {[%clk 0:02:58]} 7. Bxc4
{[%clk 0:02:42.7]} 7... b5 {[%clk 0:02:58.2]} 8. Ba2 {[%clk 0:02:43]} 8... Bb7
{[%clk 0:02:57.3]} 9. O-O {[%clk 0:02:41.1]} 9... Nbd7 {[%clk 0:02:44.6]} 10.
Qe2 {[%clk 0:02:34.4]} 10... Bd6 {[%clk 0:02:33.2]} 11. Rd1 {[%clk 0:02:19.7]}
11... cxd4 {[%clk 0:02:32.7]} 12. exd4 {[%clk 0:02:13.4]} 12... O-O {[%clk
0:02:31.2]} 13. Bg5 {[%clk 0:02:10.4]} 13... Rc8 {[%clk 0:02:27.4]} 14. Rd3
{[%clk 0:01:52.2]} 14... h6 {[%clk 0:02:21]} 15. Bh4 {[%clk 0:01:52.1]} 15...
Qc7 {[%clk 0:02:14.7]} 16. Re1 {[%clk 0:01:44]} 16... Nh5 {[%clk 0:02:01.3]} 17.
Bg3 {[%clk 0:01:44.2]} 17... Nxg3 {[%clk 0:02:00.4]} 18. hxg3 {[%clk 0:01:45.1]}
18... b4 {[%clk 0:01:54.1]} 19. axb4 {[%clk 0:01:35.5]} 19... Bxb4 {[%clk
0:01:55]} 20. g4 {[%clk 0:01:35.7]} 20... Qa5 {[%clk 0:01:49.4]} 21. Rc1 {[%clk
0:00:35.2]} 21... Nf6 {[%clk 0:01:48.7]} 22. Ne5 {[%clk 0:00:34.8]} 22... Nd5
{[%clk 0:01:14.8]} 23. Bxd5 {[%clk 0:00:34.5]} 23... Bxd5 {[%clk 0:01:13.1]} 24.
g5 {[%clk 0:00:35]} 24... hxg5 {[%clk 0:00:58.3]} 25. Qh5 {[%clk 0:00:35.1]}
25... f6 {[%clk 0:00:48.2]} 26. Ng6 {[%clk 0:00:35.4]} 26... Be4 {[%clk
0:00:45.4]} 27. Rh3 {[%clk 0:00:30.3]} 27... Rfe8 {[%clk 0:00:20.7]} 28. Re1
{[%clk 0:00:21.8]} 28... Bxg6 {[%clk 0:00:21.1]} 29. Qxg6 {[%clk 0:00:22.7]}
29... Qf5 {[%clk 0:00:20.6]} 30. Qh5 {[%clk 0:00:22.8]} 30... Bxc3 {[%clk
0:00:18.8]} 31. bxc3 {[%clk 0:00:20.5]} 31... g4 {[%clk 0:00:19.1]} 32. Qxf5
{[%clk 0:00:18.4]} 32... exf5 {[%clk 0:00:20]} 33. Rxe8+ {[%clk 0:00:18.7]}
33... Rxe8 {[%clk 0:00:20.4]} 34. Rd3 {[%clk 0:00:19.6]} 34... Rc8 {[%clk
0:00:19.5]} 35. Kf1 {[%clk 0:00:15.8]} 35... Kf7 {[%clk 0:00:19.8]} 36. Ke2
{[%clk 0:00:16.2]} 36... Ke6 {[%clk 0:00:20.4]} 37. Re3+ {[%clk 0:00:15.7]}
37... Kd5 {[%clk 0:00:19.4]} 38. Kd3 {[%clk 0:00:16.6]} 38... a5 {[%clk
0:00:19.1]} 39. Re7 {[%clk 0:00:16.8]} 39... Ra8 {[%clk 0:00:19.1]} 40. c4+
{[%clk 0:00:12.9]} 40... Kd6 {[%clk 0:00:19.6]} 41. Re2 {[%clk 0:00:13.4]} 41...
a4 {[%clk 0:00:20.1]} 42. Ra2 {[%clk 0:00:14.1]} 42... f4 {[%clk 0:00:19.2]} 43.
Ke4 {[%clk 0:00:12]} 43... g5 {[%clk 0:00:18.7]} 44. Kf5 {[%clk 0:00:12.3]}
44... Ke7 {[%clk 0:00:19]} 45. Kxg4 {[%clk 0:00:12.6]} 45... Ke6 {[%clk
0:00:18.2]} 46. Kf3 {[%clk 0:00:09.2]} 46... f5 {[%clk 0:00:16.4]} 47. Ke2
{[%clk 0:00:08.4]} 47... a3 {[%clk 0:00:16.5]} 48. Kd3 {[%clk 0:00:08.9]} 48...
Kd6 {[%clk 0:00:16.4]} 49. Kc3 {[%clk 0:00:09.3]} 49... g4 {[%clk 0:00:16.7]}
50. Kb4 {[%clk 0:00:09.1]} 50... Rb8+ {[%clk 0:00:13.1]} 51. Kxa3 {[%clk
0:00:09.5]} 51... Rb1 {[%clk 0:00:13.7]} 52. Rb2 {[%clk 0:00:08]} 52... Rg1
{[%clk 0:00:13.9]} 53. f3 {[%clk 0:00:08.4]} 53... g3 {[%clk 0:00:13.2]} 54. Kb4
{[%clk 0:00:07.8]} 54... Rd1 {[%clk 0:00:13.3]} 55. Kc3 {[%clk 0:00:08.1]} 55...
Rf1 {[%clk 0:00:12.8]} 56. Rb6+ {[%clk 0:00:05.8]} 56... Kc7 {[%clk 0:00:12.5]}
57. Rf6 {[%clk 0:00:05.9]} 57... Rf2 {[%clk 0:00:12.9]} 58. Rxf5 {[%clk
0:00:05.8]} 58... Rxg2 {[%clk 0:00:13.4]} 59. Rxf4 {[%clk 0:00:06.4]} 59... Rf2
{[%clk 0:00:13.8]} 60. Kb4 {[%clk 0:00:06.4]} 60... Kd6 {[%clk 0:00:12.1]} 61.
d5 {[%clk 0:00:05.6]} 61... Rb2+ {[%clk 0:00:10.6]} 62. Kc3 {[%clk 0:00:05.6]}
62... Rf2 {[%clk 0:00:10.7]} 63. Kd4 {[%clk 0:00:06]} 63... Rd2+ {[%clk
0:00:10.3]} 64. Ke3 {[%clk 0:00:06.5]} 64... Rc2 {[%clk 0:00:10.1]} 65. Rg4
{[%clk 0:00:06.9]} 65... g2 {[%clk 0:00:10.1]} 66. Kd3 {[%clk 0:00:06.9]} 66...
Rf2 {[%clk 0:00:10.2]} 67. Kd4 {[%clk 0:00:07.1]} 67... Rd2+ {[%clk 0:00:10.5]}
68. Ke3 {[%clk 0:00:07.2]} 68... Rc2 {[%clk 0:00:10.7]} 69. Kd3 {[%clk
0:00:05.1]} 69... Rf2 {[%clk 0:00:11.1]} 70. Rg6+ {[%clk 0:00:05.5]} 70... Kc5
{[%clk 0:00:09.9]} 71. Ke3 {[%clk 0:00:06]} 71... Rc2 {[%clk 0:00:08.9]} 72. Kf4
{[%clk 0:00:03.6]} 72... Rxc4+ {[%clk 0:00:08]} 73. Ke5 {[%clk 0:00:04.1]} 73...
Rc2 {[%clk 0:00:07.9]} 74. d6 {[%clk 0:00:04.4]} 74... Re2+ {[%clk 0:00:07.8]}
75. Kf5 {[%clk 0:00:04.8]} 75... Kc6 {[%clk 0:00:08.2]} 76. f4 {[%clk 0:00:05]}
76... Kd7 {[%clk 0:00:08.6]} 77. Kf6 {[%clk 0:00:03.3]} 77... Kxd6 {[%clk
0:00:06.4]} 78. f5 {[%clk 0:00:03.1]} 78... Kd5 {[%clk 0:00:06.6]} 79. Kf7
{[%clk 0:00:02.9]} 79... Ke4 {[%clk 0:00:06.6]} 80. f6 {[%clk 0:00:03.1]} 80...
Kf3 {[%clk 0:00:07.3]} 81. Kg8 {[%clk 0:00:02.2]} 81... Ra2 {[%clk 0:00:07.7]}
82. f7 {[%clk 0:00:02.8]} 82... Ra8+ {[%clk 0:00:08]} 83. f8=Q+ {[%clk
0:00:03.5]} 83... Rxf8+ {[%clk 0:00:08.5]} 84. Kxf8 {[%clk 0:00:04.4]} 84... Kf2
{[%clk 0:00:09]} 85. Rxg2+ {[%clk 0:00:04.9]} 85... Kxg2 {[%clk 0:00:09.2]}
1/2-1/2

[Event "Late-Titled-Tuesday-Blitz-February-13-2024"]
[Site "Chess.com"]
[Date "2024.02.13"]
[Round "7"]
[White "Grossboss19"]
[Black "DonJuan_34"]
[Result "1/2-1/2"]
[WhiteElo "2621"]
[BlackElo "2496"]
[TimeControl "180+1"]
[EndTime "15:19:38 PST"]
[Termination "Game drawn - insufficient material"]

1. Nf3 {[%clk 0:03:00.9]} 1... Nf6 {[%clk 0:02:57.5]} 2. e3 {[%clk 0:03:00.8]}
2... g6 {[%clk 0:02:55.6]} 3. d4 {[%clk 0:03:00.4]} 3... Bg7 {[%clk 0:02:55.4]}
4. Bd3 {[%clk 0:03:01.3]} 4... O-O {[%clk 0:02:55.7]} 5. O-O {[%clk 0:02:51.1]}
5... d6 {[%clk 0:02:55.5]} 6. c4 {[%clk 0:02:52]} 6... Nbd7 {[%clk 0:02:54.6]}
7. Re1 {[%clk 0:02:51.6]} 7... e5 {[%clk 0:02:54.1]} 8. Nc3 {[%clk 0:02:50.7]}
8... Re8 {[%clk 0:02:51.4]} 9. Nd2 {[%clk 0:02:43.4]} 9... exd4 {[%clk
0:02:36.9]} 10. exd4 {[%clk 0:02:42.2]} 10... Rxe1+ {[%clk 0:02:36.5]} 11. Qxe1
{[%clk 0:02:43.1]} 11... Nf8 {[%clk 0:02:25]} 12. h3 {[%clk 0:02:40.5]} 12...
Ne6 {[%clk 0:02:18.3]} 13. Nf3 {[%clk 0:02:38.6]} 13... d5 {[%clk 0:02:17.6]}
14. Be3 {[%clk 0:02:34.9]} 14... c6 {[%clk 0:02:15.4]} 15. Rd1 {[%clk 0:02:27]}
15... Nc7 {[%clk 0:02:14.9]} 16. Bg5 {[%clk 0:02:17.1]} 16... h6 {[%clk
0:02:11]} 17. Bh4 {[%clk 0:02:15.4]} 17... dxc4 {[%clk 0:02:05.1]} 18. Bxc4
{[%clk 0:02:12.9]} 18... Be6 {[%clk 0:02:05.4]} 19. Bxe6 {[%clk 0:01:55.5]}
19... Nxe6 {[%clk 0:02:03.3]} 20. d5 {[%clk 0:01:53.9]} 20... cxd5 {[%clk
0:02:02.3]} 21. Bxf6 {[%clk 0:01:47.7]} 21... Qxf6 {[%clk 0:01:58.7]} 22. Rxd5
{[%clk 0:01:45.5]} 22... Rd8 {[%clk 0:01:55.5]} 23. Rxd8+ {[%clk 0:01:44.7]}
23... Qxd8 {[%clk 0:01:54.9]} 24. Qd2 {[%clk 0:01:44]} 24... Qxd2 {[%clk
0:01:52.9]} 25. Nxd2 {[%clk 0:01:44.9]} 25... Nc5 {[%clk 0:01:48.4]} 26. Nc4
{[%clk 0:01:39.3]} 26... a6 {[%clk 0:01:43.4]} 27. Nd6 {[%clk 0:01:32.2]} 27...
b5 {[%clk 0:01:36.3]} 28. Nd1 {[%clk 0:01:15.2]} 28... Nd3 {[%clk 0:01:30.8]}
29. b3 {[%clk 0:01:15.1]} 29... Nc1 {[%clk 0:01:28.8]} 30. a4 {[%clk 0:01:14]}
30... b4 {[%clk 0:01:22.9]} 31. Ne3 {[%clk 0:01:00.7]} 31... Nxb3 {[%clk
0:01:20.4]} 32. Nd5 {[%clk 0:00:56]} 32... a5 {[%clk 0:01:03.9]} 33. Nc4 {[%clk
0:00:48.7]} 33... Bc3 {[%clk 0:00:58.4]} 34. Ne7+ {[%clk 0:00:39.3]} 34... Kf8
{[%clk 0:00:55.9]} 35. Nc6 {[%clk 0:00:40.2]} 35... Nc5 {[%clk 0:00:53.3]} 36.
N4xa5 {[%clk 0:00:30.5]} 36... b3 {[%clk 0:00:47.1]} 37. Nc4 {[%clk 0:00:26.7]}
37... Nxa4 {[%clk 0:00:39.6]} 38. Na3 {[%clk 0:00:23.5]} 38... Nb6 {[%clk
0:00:28.9]} 39. Kf1 {[%clk 0:00:20.5]} 39... Nc4 {[%clk 0:00:26.8]} 40. Nxc4
{[%clk 0:00:19.7]} 40... b2 {[%clk 0:00:20.9]} 41. Na3 {[%clk 0:00:18.9]} 41...
Kg7 {[%clk 0:00:19.3]} 42. Ke2 {[%clk 0:00:18.8]} 42... h5 {[%clk 0:00:18.4]}
43. Na7 {[%clk 0:00:18.7]} 43... g5 {[%clk 0:00:17.6]} 44. N7b5 {[%clk
0:00:18.6]} 44... Bb4 {[%clk 0:00:16.2]} 45. Nb1 {[%clk 0:00:19.1]} 45... Kg6
{[%clk 0:00:15.7]} 46. Nd4 {[%clk 0:00:18.4]} 46... g4 {[%clk 0:00:14.7]} 47. h4
{[%clk 0:00:16.9]} 47... f5 {[%clk 0:00:14]} 48. g3 {[%clk 0:00:16.5]} 48... f4
{[%clk 0:00:13.6]} 49. gxf4 {[%clk 0:00:16]} 49... Be7 {[%clk 0:00:13.2]} 50. f3
{[%clk 0:00:10.7]} 50... Bxh4 {[%clk 0:00:12.3]} 51. fxg4 {[%clk 0:00:09.4]}
51... hxg4 {[%clk 0:00:12.4]} 52. Ke3 {[%clk 0:00:09.8]} 52... Bg3 {[%clk
0:00:11.3]} 53. Ke4 {[%clk 0:00:09.3]} 53... Bxf4 {[%clk 0:00:09]} 54. Kxf4
{[%clk 0:00:09.3]} 54... g3 {[%clk 0:00:08.9]} 55. Kxg3 {[%clk 0:00:09.6]} 55...
Kf6 {[%clk 0:00:08.8]} 56. Kf4 {[%clk 0:00:10.5]} 56... Kg6 {[%clk 0:00:08.7]}
57. Ke5 {[%clk 0:00:11.4]} 57... Kg5 {[%clk 0:00:08.8]} 58. Ne6+ {[%clk
0:00:11.4]} 58... Kg4 {[%clk 0:00:09.1]} 59. Ke4 {[%clk 0:00:12.1]} 59... Kg3
{[%clk 0:00:08.9]} 60. Nf4 {[%clk 0:00:12.5]} 60... Kf2 {[%clk 0:00:08.5]} 61.
Nd5 {[%clk 0:00:11.5]} 61... Ke2 {[%clk 0:00:08.4]} 62. Kd4 {[%clk 0:00:11.2]}
62... Kd1 {[%clk 0:00:08]} 63. Kd3 {[%clk 0:00:09.6]} 63... Ke1 {[%clk 0:00:08]}
64. Ne3 {[%clk 0:00:08.8]} 64... Kf2 {[%clk 0:00:08.2]} 65. Ke4 {[%clk
0:00:09.5]} 65... Ke2 {[%clk 0:00:07.8]} 66. Nc4 {[%clk 0:00:06.4]} 66... Kd1
{[%clk 0:00:06.4]} 67. Kd3 {[%clk 0:00:06.1]} 67... Kc1 {[%clk 0:00:05.7]} 68.
Nca3 {[%clk 0:00:05.5]} 68... Kd1 {[%clk 0:00:05.4]} 69. Ke3 {[%clk 0:00:06.2]}
69... Kc1 {[%clk 0:00:05.3]} 70. Kf2 {[%clk 0:00:04.8]} 70... Kd1 {[%clk
0:00:04.7]} 71. Nc3+ {[%clk 0:00:03.1]} 71... Kd2 {[%clk 0:00:04.2]} 72. Nab1+
{[%clk 0:00:03.4]} 72... Kd3 {[%clk 0:00:04.5]} 73. Ke1 {[%clk 0:00:03.4]} 73...
Kc2 {[%clk 0:00:05.4]} 74. Ke2 {[%clk 0:00:03.8]} 74... Kb3 {[%clk 0:00:05.3]}
75. Kd3 {[%clk 0:00:04.7]} 75... Kb4 {[%clk 0:00:05.2]} 76. Kd4 {[%clk
0:00:05.2]} 76... Kb3 {[%clk 0:00:05.2]} 77. Kc5 {[%clk 0:00:06.1]} 77... Kc2
{[%clk 0:00:05.6]} 78. Kb4 {[%clk 0:00:06.6]} 78... Kd3 {[%clk 0:00:05.9]} 79.
Kb3 {[%clk 0:00:06.9]} 79... Kd4 {[%clk 0:00:06.3]} 80. Kxb2 {[%clk 0:00:07.3]}
1/2-1/2